bitfinex/quotes_ETHUSD_20220105
["timestamp","ask_amount","ask_price","bid_price","bid_amount"]
[1641355158963,1.3940713,3811.4,3811.3,2.44220558]
[1641355159163,0.3940713,3811.4,3811.3,2.44220558]
[1641355161813,0.0120713,3811.4,3811.3,2.44220558]
[1641355162413,1.6484213,3811.5,3811.3,2.44220558]
[1641355166257,2.3047213,3811.5,3811.3,2.44220558]
[1641355167061,4.232,3811.4,3811.3,2.44220558]
[1641355167264,6.34814545,3811.4,3811.3,2.44220558]
[1641355167461,7.34814545,3811.4,3811.3,2.44220558]
[1641355168162,3.49814545,3811.4,3811.3,2.44220558]
[1641355170208,1.382,3811.4,3811.3,2.44220558]
[1641355171210,1.48859239,3811.4,3811.3,2.44220558]
[1641355171414,3.40223902,3811.4,3811.3,2.44220558]
[1641355171609,1.48859239,3811.4,3811.3,2.44220558]
[1641355171813,0.48859239,3811.4,3811.3,2.44220558]
[1641355172013,1.48859239,3811.4,3811.3,2.44220558]
[1641355172214,0.48859239,3811.4,3811.3,2.44220558]
[1641355172418,1.48859239,3811.4,3811.3,2.44220558]
[1641355172615,3.39490452,3811.4,3811.3,2.44220558]
[1641355172857,1.48859239,3811.4,3811.3,2.44220558]
[1641355173157,0.48859239,3811.4,3811.3,2.44220558]
[1641355175861,0.48859239,3811.4,3811.3,2.74220558]
[1641355176460,0.10659239,3811.4,3811.3,2.74220558]
[1641355185213,0.6484213,3811.5,3811.3,2.74220558]
[1641355186622,0.6484213,3811.5,3811.3,2.44220558]
[1641355186623,1.0304213,3811.5,3811.3,2.44220558]
[1641355186821,2.91213104,3811.5,3811.3,2.44220558]
[1641355187022,1.0304213,3811.5,3811.3,2.44220558]
[1641355187425,2.0304213,3811.5,3811.3,2.44220558]
[1641355187622,1.0304213,3811.5,3811.3,2.44220558]
[1641355187861,2.0304213,3811.5,3811.3,2.44220558]
[1641355188263,1.0304213,3811.5,3811.3,2.44220558]
[1641355188662,2.96851129,3811.4,3811.3,2.44220558]
[1641355188863,1.07828305,3811.4,3811.3,2.44220558]
[1641355189063,2.07828305,3811.4,3811.3,2.44220558]
[1641355190070,3.98346785,3811.4,3811.3,2.44220558]
[1641355191715,4.36546785,3811.4,3811.3,2.44220558]
[1641355192816,2.46028305,3811.4,3811.3,2.44220558]
[1641355193218,4.36069957,3811.4,3811.3,2.44220558]
[1641355193427,2.46028305,3811.4,3811.3,2.44220558]
[1641355193819,4.37674533,3811.4,3811.3,2.44220558]
[1641355194417,2.46028305,3811.4,3811.3,2.44220558]
[1641355196867,4.36202332,3811.4,3811.3,2.44220558]
[1641355198265,2.46028305,3811.4,3811.3,2.44220558]
[1641355200918,2.46028305,3811.4,3811.3,2.43965599]
[1641355202963,4.35786158,3811.4,3811.3,2.43965599]
[1641355205066,2.46028305,3811.4,3811.3,2.43965599]
[1641355205267,4.36118384,3811.4,3811.3,2.43965599]
[1641355205465,3.36118384,3811.4,3811.3,2.43965599]
[1641355205667,1.46028305,3811.4,3811.3,2.43965599]
[1641355206073,3.36586075,3811.4,3811.3,2.43965599]
[1641355206921,4.36586075,3811.4,3811.3,2.43965599]
[1641355207722,2.46028305,3811.4,3811.3,2.43965599]
[1641355209424,4.36809621,3811.4,3811.3,2.43965599]
[1641355209822,4.5313686,3811.4,3811.3,2.43965599]
[1641355210023,2.62355544,3811.4,3811.3,2.43965599]
[1641355210870,1.62355544,3811.4,3811.3,2.43965599]
[1641355212371,2.62355544,3811.4,3811.3,2.43965599]
[1641355214912,4.55929578,3811.4,3811.3,2.43965599]
[1641355215312,4.55929578,3811.4,3811.3,0.92795156]
[1641355215714,0.16327239,3811.2,3811.0,2.86761851]
[1641355215914,1.20169239,3811.1,3811.0,2.86761851]
[1641355216316,4.0906654,3811.1,3811.0,2.86761851]
[1641355216614,2.20169239,3811.1,3811.0,2.86761851]
[1641355218767,1.20169239,3811.1,3811.0,2.86761851]
[1641355219168,0.81969239,3811.1,3811.0,2.86761851]
[1641355219370,0.16327239,3811.1,3811.0,2.86761851]
[1641355219781,0.16327239,3811.1,3811.0,3.16761851]
[1641355223623,0.16327239,3811.1,3811.0,2.86761851]
[1641355224223,0.81950239,3811.1,3811.0,2.86761851]
[1641355224625,1.84022333,3811.1,3811.0,2.86761851]
[1641355225223,0.81950239,3811.1,3811.0,2.86761851]
[1641355226769,3.39659182,3811.1,3811.0,2.86761851]
[1641355227169,4.39659182,3811.1,3811.0,2.86761851]
[1641355227371,4.45892007,3811.1,3811.0,2.86761851]
[1641355228971,2.56737582,3811.1,3811.0,2.86761851]
[1641355229618,4.46344038,3811.1,3811.0,2.86761851]
[1641355229821,4.16344038,3811.1,3811.0,2.86761851]
[1641355230025,2.26737582,3811.1,3811.0,2.86761851]
[1641355230929,2.26737582,3811.1,3810.5,0.04543735]
[1641355230930,0.16327239,3810.7,3810.5,0.04543735]
[1641355231128,0.54527239,3810.6,3810.5,0.04543735]
[1641355231726,3.44022399,3810.6,3810.5,0.04543735]
[1641355231924,1.20174239,3810.6,3810.5,0.04543735]
[1641355232126,3.34004234,3810.6,3810.5,0.04543735]
[1641355232326,2.34004234,3810.6,3810.5,0.04543735]
[1641355232525,3.34004234,3810.6,3810.5,0.04543735]
[1641355232734,2.20528807,3810.6,3810.5,0.04543735]
[1641355233173,2.26763265,3810.6,3810.5,0.04543735]
[1641355233571,1.26763265,3810.6,3810.5,0.04543735]
[1641355235377,2.26763265,3810.6,3810.5,0.04543735]
[1641355237725,1.26763265,3810.6,3810.5,0.04543735]
[1641355238826,2.26763265,3810.6,3810.5,0.04543735]
[1641355239428,4.20572718,3810.6,3810.5,0.04543735]
[1641355239627,4.57026558,3810.6,3810.5,0.04543735]
[1641355240027,5.89579371,3810.6,3810.5,0.04543735]
[1641355242277,5.59579371,3810.6,3810.5,0.04543735]
[1641355242877,3.65769918,3810.6,3810.5,0.04543735]
[1641355243678,0.16327239,3810.4,3810.2,0.9506833]
[1641355243879,1.20183239,3810.3,3810.2,0.9506833]
[1641355244122,3.26180632,3810.3,3810.2,0.9506833]
[1641355244619,4.26180632,3810.3,3810.2,0.9506833]
[1641355245421,2.20183239,3810.3,3810.2,0.9506833]
[1641355245823,4.12013457,3810.3,3810.2,0.9506833]
[1641355246022,2.20183239,3810.3,3810.2,0.9506833]
[1641355247971,4.58060783,3810.3,3810.2,0.9506833]
[1641355248374,4.28060783,3810.3,3810.2,0.9506833]
[1641355249176,2.26637079,3810.3,3810.2,0.9506833]
[1641355252244,4.88006136,3810.3,3810.2,0.9506833]
[1641355252445,4.28006136,3810.3,3810.2,0.9506833]
[1641355252742,5.41637079,3810.3,3809.7,0.7579524]
[1641355252942,0.16327239,3809.9,3809.7,0.7579524]
[1641355253142,0.54527239,3809.8,3809.7,0.7579524]
[1641355253662,1.83101983,3809.8,3809.7,0.7676156]
[1641355253847,1.89555823,3809.8,3809.7,0.7676156]
[1641355254045,2.19555823,3809.8,3809.7,0.7676156]
[1641355254945,3.81599163,3809.8,3809.7,0.7676156]
[1641355255147,2.83101983,3809.8,3809.7,0.7676156]
[1641355255372,4.73474158,3809.8,3809.7,0.7676156]
[1641355255576,1.83101983,3809.8,3809.7,0.7676156]
[1641355256076,0.54527239,3809.8,3809.7,0.7676156]
[1641355256474,2.58870937,3809.8,3809.7,0.7676156]
[1641355256678,0.60764046,3809.8,3809.7,0.7676156]
[1641355257576,0.61118689,3809.8,3809.7,0.7676156]
[1641355257977,0.91118689,3809.8,3809.7,0.7676156]
[1641355258279,1.61118689,3809.8,3809.7,0.7676156]
[1641355258881,1.61118689,3809.8,3809.7,0.65127685]
[1641355259137,0.61118689,3809.8,3809.7,0.65127685]
[1641355259531,1.61118689,3809.8,3809.7,0.65127685]
[1641355259730,0.61118689,3809.8,3809.7,0.65127685]
[1641355259932,1.61118689,3809.8,3809.7,0.6058395]
[1641355260333,0.61118689,3809.8,3809.7,0.6058395]
[1641355260534,0.91118689,3809.8,3809.7,0.6058395]
[1641355260734,3.81305202,3809.8,3809.4,0.67256845]
[1641355260933,3.81305202,3809.8,3809.4,0.5562297]
[1641355260934,1.47668239,3809.6,3809.4,0.5562297]
[1641355261133,2.26902165,3809.5,3809.4,0.5562297]
[1641355261533,3.26902165,3809.5,3809.4,0.55793497]
[1641355262137,3.26902165,3809.5,3809.4,0.51249762]
[1641355262336,3.3314006,3809.5,3808.9,0.1617761]
[1641355262537,0.16327239,3809.1,3808.9,0.1617761]
[1641355262738,1.22339761,3809.0,3808.9,0.1617761]
[1641355263175,1.22339761,3809.0,3808.9,0.16461822]
[1641355263579,0.16327239,3809.0,3808.9,0.16461822]
[1641355264777,1.41406196,3809.0,3808.9,0.16461822]
[1641355265276,3.32823811,3809.0,3808.9,0.16461822]
[1641355265679,4.32823811,3809.0,3808.9,0.16461822]
[1641355267126,4.35182967,3809.0,3808.9,0.16461822]
[1641355267327,4.73382967,3809.0,3808.9,0.16461822]
[1641355268128,4.79622313,3809.0,3808.6,0.1617761]
[1641355268429,0.82006239,3808.7,3808.6,0.1617761]
[1641355268629,0.77006239,3808.7,3808.6,0.1617761]
[1641355268828,1.77006239,3808.7,3808.6,0.16348137]
[1641355269031,1.77006239,3808.7,3808.6,8.137e-05]
[1641355269231,0.11327239,3808.1,3807.2,0.0562]
[1641355269429,0.65685,3808.4,3808.2,0.05699334]
[1641355269928,2.57516764,3808.4,3808.3,0.00170527]
[1641355270131,4.88011039,3808.4,3808.3,0.00170527]
[1641355270384,1.65685,3808.4,3808.3,0.00170527]
[1641355270578,1.3137,3808.4,3808.3,0.00170527]
[1641355270783,2.3137,3808.4,3808.3,0.00170527]
[1641355272786,2.3137,3808.4,3807.7,0.00511581]
[1641355272986,0.65682,3808.1,3807.7,0.00511581]
[1641355273387,1.03894,3808.0,3807.7,0.00511581]
[1641355273592,1.97101,3807.9,3807.6,0.05699334]
[1641355273786,1.0390093,3807.8,3807.6,0.05699334]
[1641355274132,0.657,3807.7,3807.6,0.05699334]
[1641355274328,1.039,3807.7,3807.6,0.05699334]
[1641355274936,0.382,3807.7,3807.6,0.05699334]
[1641355275437,0.382,3807.7,3807.1,0.05699334]
[1641355275637,0.382,3807.7,3807.3,0.65686]
[1641355276435,0.382,3807.7,3807.4,0.3]
[1641355276836,0.382,3807.7,3807.5,0.00113685]
[1641355277736,0.382,3807.7,3807.4,0.00170527]
[1641355277737,0.65688,3807.6,3807.4,0.00170527]
[1641355279487,0.71932071,3807.6,3807.4,0.00170527]
[1641355286583,1.71932071,3807.6,3807.4,0.00170527]
[1641355286783,0.382,3807.5,3807.4,0.00170527]
[1641355288585,0.38592838,3807.5,3807.4,0.00170527]
[1641355290834,0.38592838,3807.5,3807.1,0.05699334]
[1641355290835,1.31422,3807.3,3807.1,0.05699334]
[1641355291033,0.382,3807.2,3807.1,0.05699334]
[1641355291441,1.36930635,3807.1,3807.0,0.006567]
[1641355291635,1.75130635,3807.1,3807.0,0.006567]
[1641355292434,1.75130635,3807.1,3806.6,0.1137244]
[1641355292435,1.47136212,3806.7,3806.6,0.1137244]
[1641355292635,1.0865,3806.7,3806.6,0.1137244]
[1641355292894,3.06450663,3806.7,3806.6,0.11656652]
[1641355293086,4.06450663,3806.7,3806.6,0.11656652]
[1641355293286,4.04186079,3806.7,3806.2,0.09997479]
[1641355293487,0.65723,3806.4,3806.2,0.09997479]
[1641355293685,0.382,3806.3,3806.2,0.09997479]
[1641355294086,0.382,3806.3,3806.2,0.10224848]
[1641355297535,0.44448067,3806.3,3806.2,0.10224848]
[1641355298935,0.44448067,3806.3,3806.2,0.05340688]
[1641355299134,0.44836086,3806.3,3806.2,0.05340688]
[1641355302183,0.44836086,3806.3,3806.2,0.05111528]
[1641355304733,2.5517614,3806.3,3806.2,0.05111528]
[1641355305130,2.45,3806.2,3805.8,0.04884159]
[1641355305335,1.9718489,3806.0,3805.8,0.04884159]
[1641355305532,2.47455499,3805.9,3805.8,0.04884159]
[1641355305939,3.47455499,3805.9,3805.8,0.05111529]
[1641355308179,1.382,3805.9,3805.8,0.05111529]
[1641355309377,1.382,3805.9,3805.8,0.05340688]
[1641355309378,0.44449517,3805.9,3805.8,0.05340688]
[1641355309579,1.44449517,3805.9,3805.8,0.05340688]
[1641355309776,0.44449517,3805.9,3805.8,0.05340688]
[1641355309977,1.44449517,3805.9,3805.8,0.05340688]
[1641355310181,3.38160605,3805.9,3805.8,0.05340688]
[1641355310382,1.44449517,3805.9,3805.8,0.05569847]
[1641355310585,0.44449517,3805.9,3805.8,0.05569847]
[1641355310783,1.44449517,3805.9,3805.8,0.05569847]
[1641355311185,0.44449517,3805.9,3805.8,0.05569847]
[1641355311385,1.44449517,3805.9,3805.8,0.05799006]
[1641355312038,0.44449517,3805.9,3805.8,0.05799006]
[1641355312442,0.44449517,3805.9,3805.8,0.06028165]
[1641355313541,0.44449517,3805.9,3805.8,0.06257324]
[1641355314642,0.44449517,3805.9,3805.8,0.06486483]
[1641355314841,0.44449517,3805.9,3805.8,0.01602324]
[1641355315477,0.44449517,3805.9,3805.8,0.01831483]
[1641355318581,0.44449517,3805.9,3805.7,1.28255483]
[1641355318780,0.44449517,3805.9,3805.8,0.00229159]
[1641355318980,0.44449517,3805.9,3805.7,1.28255483]
[1641355319831,0.06020358,3805.9,3805.7,1.28255483]
[1641355320031,0.06020358,3805.9,3805.8,2.14183901]
[1641355320232,0.01825556,3806.3,3805.8,2.14183901]
[1641355320430,0.01825556,3806.3,3805.9,0.65699]
[1641355320632,0.01825556,3806.3,3806.0,1.314]
[1641355320633,0.0022737,3806.2,3806.0,1.314]
[1641355320833,0.382,3807.4,3806.0,1.314]
[1641355321040,0.382,3807.4,3806.3,0.01277923]
[1641355321231,0.65696,3806.9,3806.3,0.01277923]
[1641355321531,0.00341054,3806.8,3806.3,0.01277923]
[1641355321933,0.382,3807.4,3806.6,0.65703]
[1641355321934,0.00284211,3806.7,3806.6,0.65703]
[1641355322134,0.00284211,3806.7,3806.6,0.95703]
[1641355322335,0.00284211,3806.7,3806.6,1.25703]
[1641355323381,0.00284211,3806.7,3806.6,3.14376683]
[1641355324088,0.00284211,3806.7,3806.6,0.65703]
[1641355324288,0.00284211,3806.7,3806.5,0.04884158]
[1641355324687,0.00284211,3806.7,3806.5,0.09768316]
[1641355324688,0.00227369,3806.6,3806.5,0.09768316]
[1641355325488,0.65931369,3806.6,3806.5,0.09768316]
[1641355325687,0.65931369,3806.6,3806.5,0.14652474]
[1641355326493,0.65931369,3806.6,3806.5,2.74652474]
[1641355326756,0.65931369,3806.6,3806.5,2.79536632]
[1641355327754,0.65931369,3806.6,3806.5,2.8442079]
[1641355328758,0.65931369,3806.6,3806.5,2.89304948]
[1641355329758,0.65931369,3806.6,3806.5,2.94189106]
[1641355330783,0.65931369,3806.6,3806.5,2.99073264]
[1641355331784,0.65931369,3806.6,3806.5,3.03957422]
[1641355332986,0.65931369,3806.6,3806.5,3.0884158]
[1641355333994,0.65931369,3806.6,3806.5,3.13725738]
[1641355334941,0.65931369,3806.6,3806.5,3.18609896]
[1641355337545,4.29131369,3806.6,3805.2,3.0586]
[1641355337746,0.65723,3806.1,3805.2,3.0586]
[1641355337980,0.65723,3805.8,3805.5,0.00397897]
[1641355338381,0.65723,3805.8,3804.9,0.00738951]
[1641355338382,1.0765751,3805.5,3804.9,0.00738951]
[1641355338582,1.0765751,3805.5,3805.0,1.31448]
[1641355338981,1.0765751,3805.5,3805.1,0.00625266]
[1641355339184,1.0765751,3805.5,3805.2,0.65725]
[1641355339581,1.0765751,3805.5,3805.3,0.00511582]
[1641355339784,0.65725,3805.4,3805.3,0.00511582]
[1641355344669,0.70726049,3805.4,3805.3,0.00511582]
[1641355346085,3.1567471,3805.4,3805.3,0.00511582]
[1641355346489,4.1567471,3805.4,3804.7,0.00852636]
[1641355346788,0.65735,3805.1,3804.7,0.00852636]
[1641355346993,1.03935,3805.1,3804.7,0.00852636]
[1641355348792,1.03935,3805.1,3804.7,0.66586636]
[1641355349236,1.03935,3805.1,3804.8,0.00795793]
[1641355350037,0.65735,3805.1,3804.8,0.00795793]
[1641355350235,0.05001049,3805.4,3804.8,0.30795793]
[1641355350438,0.65724,3805.3,3805.0,0.65722]
[1641355350637,0.65724,3805.3,3805.0,0.95722]
[1641355350836,0.65724,3805.3,3805.1,0.00625266]
[1641355355890,0.66091555,3805.3,3805.1,0.00625266]
[1641355356490,0.71093144,3805.3,3805.1,0.00625266]
[1641355357551,1.9112356,3805.2,3805.1,0.00625266]
[1641355357747,0.71093144,3805.3,3805.1,0.00625266]
[1641355357945,1.0,3805.2,3805.1,0.00625266]
[1641355358146,0.71093144,3805.3,3805.1,0.00625266]
[1641355361283,1.31459,3805.2,3805.1,0.00625266]
[1641355364340,0.71093144,3805.3,3805.1,0.00625266]
[1641355365550,0.05369144,3805.3,3805.1,0.00625266]
[1641355365947,0.05369144,3805.3,3805.1,0.30625266]
[1641355366148,0.05369144,3805.3,3805.1,0.60625266]
[1641355366350,0.05369144,3805.3,3805.2,0.00568424]
[1641355369994,0.05369144,3805.3,3805.2,2.13097832]
[1641355370193,0.01421542,3806.0,3805.5,0.65706]
[1641355370390,0.01421542,3806.0,3805.6,2.94130409]
[1641355370592,0.01421542,3806.0,3805.7,0.3]
[1641355370791,0.01421542,3806.0,3805.7,0.00284212]
[1641355370990,0.01421542,3806.0,3805.8,0.0022737]
[1641355371190,1.38600069,3806.5,3805.8,0.65707]
[1641355371394,1.6570867,3806.6,3805.8,0.6593437]
[1641355371635,0.00113684,3806.4,3805.9,0.00170527]
[1641355372140,0.65707,3806.2,3805.8,0.0022737]
[1641355372540,0.65707,3806.2,3805.4,0.00454739]
[1641355372742,0.65707,3806.2,3805.9,1.31413]
[1641355373243,0.65707,3806.2,3806.0,0.00113685]
[1641355373439,0.69706256,3806.2,3806.0,0.00113685]
[1641355373842,0.69706256,3806.2,3806.0,1.31527685]
[1641355378790,0.03999256,3806.2,3806.0,1.31527685]
[1641355380445,0.03999256,3806.2,3806.0,1.61527685]
[1641355384995,0.03999256,3806.2,3806.1,2.06760735]
[1641355385197,0.00354975,3806.3,3806.1,2.08087681]
[1641355385394,0.00354975,3806.3,3806.0,1.61527685]
[1641355390513,0.03198302,3806.2,3806.0,1.61527685]
[1641355391819,0.03198302,3806.2,3806.0,1.31527685]
[1641355395846,0.03198302,3806.2,3806.0,1.61527685]
[1641355396448,0.03198302,3806.2,3806.0,1.31527685]
[1641355396649,0.03198302,3806.2,3806.0,1.61527685]
[1641355396848,0.03198302,3806.2,3806.0,1.31527685]
[1641355397047,0.03198302,3806.2,3806.0,1.61527685]
[1641355400595,0.03198302,3806.2,3806.0,1.31527685]
[1641355402844,0.03198302,3806.2,3806.0,1.61527685]
[1641355403044,0.03198302,3806.2,3806.0,1.61414]
[1641355405900,0.03198302,3806.2,3806.0,1.31414]
[1641355413899,0.68904302,3806.2,3806.0,1.31414]
[1641355414601,0.03198302,3806.2,3806.0,1.31414]
[1641355417756,0.03198302,3806.2,3806.0,1.61414]
[1641355421594,0.03198302,3806.2,3806.0,1.31414]
[1641355422997,0.68908302,3806.2,3806.0,1.31414]
[1641355423196,1.90279824,3806.1,3806.0,1.31414]
[1641355423395,0.68908302,3806.2,3806.0,1.31414]
[1641355423596,2.58907018,3806.2,3806.0,1.31414]
[1641355424242,3.90336058,3806.2,3806.0,1.31414]
[1641355424440,2.00337342,3806.2,3806.0,1.31414]
[1641355429405,3.92144842,3806.2,3806.0,1.31414]
[1641355429606,2.00337342,3806.2,3806.0,1.31414]
[1641355438001,3.00337342,3806.2,3806.0,1.31414]
[1641355441968,1.68908302,3806.2,3806.0,1.31414]
[1641355442993,0.68908302,3806.2,3806.0,1.31414]
[1641355444695,0.03198302,3806.2,3806.1,2.20796462]
[1641355444893,0.03198302,3806.2,3806.0,1.31414]
[1641355448652,0.68905302,3806.2,3806.0,1.31414]
[1641355476652,0.00542264,3806.3,3806.1,3.28625687]
[1641355476857,0.00542264,3806.3,3806.2,2.03421946]
[1641355477055,0.00542264,3806.3,3806.1,1.5191386]
[1641355477255,0.01421542,3806.9,3806.4,0.65693]
[1641355477559,0.00341054,3806.8,3806.5,0.3]
[1641355477755,0.00341054,3806.8,3806.6,0.65693]
[1641355477956,0.00284211,3806.7,3806.6,0.65693]
[1641355488395,0.00284211,3806.7,3806.6,3.25693]
[1641355493454,0.00639141,3806.7,3806.6,3.25693]
[1641355493653,0.00639141,3806.7,3806.6,2.6]
[1641355497906,0.64404747,3807.0,3806.7,0.65698]
[1641355498308,0.00113685,3806.9,3806.7,0.65698]
[1641355499007,0.65812685,3806.9,3806.7,0.65698]
[1641355500054,1.65812685,3806.9,3806.7,0.65698]
[1641355502759,1.68881199,3806.9,3806.7,0.65698]
[1641355504998,0.68881199,3806.9,3806.7,0.65698]
[1641355505198,1.68881199,3806.9,3806.7,0.65698]
[1641355505599,0.68881199,3806.9,3806.7,0.65698]
[1641355508057,1.68881199,3806.9,3806.7,0.65698]
[1641355508353,0.68881199,3806.9,3806.7,0.65698]
[1641355508555,1.68881199,3806.9,3806.7,0.65698]
[1641355508752,0.68881199,3806.9,3806.7,0.65698]
[1641355508954,1.68881199,3806.9,3806.7,0.65698]
[1641355509153,0.00354917,3806.8,3806.7,0.65698]
[1641355509357,0.00354917,3806.8,3806.6,3.91395]
[1641355509755,0.66057917,3806.8,3806.6,3.91395]
[1641355513004,0.66057917,3806.8,3806.7,0.3]
[1641355514846,2.66978773,3806.8,3806.6,3.91395]
[1641355515046,1.0,3806.7,3806.6,3.91395]
[1641355515446,1.31769157,3806.8,3806.6,3.91395]
[1641355515647,1.69969157,3806.8,3806.6,3.91395]
[1641355516047,2.69969157,3806.8,3806.6,3.91395]
[1641355517054,1.96977061,3806.7,3806.6,3.91395]
[1641355517255,3.45162292,3806.7,3806.6,3.91395]
[1641355517454,4.45162292,3806.7,3806.6,3.91395]
[1641355517904,4.45162292,3806.7,3806.6,1.81913738]
[1641355518308,4.75162292,3806.7,3806.6,1.81913738]
[1641355519510,4.45162292,3806.7,3806.6,1.81913738]
[1641355519709,4.75162292,3806.7,3806.6,1.81913738]
[1641355520211,3.26977061,3806.7,3806.6,1.81913738]
[1641355521013,3.30045708,3806.7,3806.6,1.81913738]
[1641355522456,3.68245708,3806.7,3806.6,1.81913738]
[1641355523457,1.71268647,3806.7,3806.6,1.81913738]
[1641355524656,0.71268647,3806.7,3806.6,1.81913738]
[1641355524857,1.71268647,3806.7,3806.6,1.81913738]
[1641355525057,3.65564011,3806.7,3806.6,1.81913738]
[1641355528906,3.65564011,3806.7,3806.3,0.65717]
[1641355529154,0.65718,3806.5,3806.3,0.65717]
[1641355529457,0.65718,3806.5,3806.4,0.00170527]
[1641355529654,1.65718,3806.5,3806.4,0.00170527]
[1641355532263,2.03918,3806.5,3806.4,0.00170527]
[1641355533507,1.03918,3806.5,3806.4,0.00170527]
[1641355533708,2.03918,3806.5,3806.4,0.00170527]
[1641355534113,1.03918,3806.5,3806.4,0.00170527]
[1641355534511,2.03918,3806.5,3806.4,0.00170527]
[1641355534717,1.03918,3806.5,3806.4,0.00170527]
[1641355534915,2.04272942,3806.5,3806.4,0.00170527]
[1641355535515,1.04272942,3806.5,3806.4,0.00170527]
[1641355535715,2.04272942,3806.5,3806.4,0.00170527]
[1641355538162,2.07341723,3806.5,3806.4,0.00170527]
[1641355543106,1.07341723,3806.5,3806.4,0.00170527]
[1641355550815,1.07341723,3806.5,3806.3,0.65717]
[1641355550816,1.03918,3806.5,3806.0,0.46746804]
[1641355551218,1.03918,3806.5,3806.1,0.00170527]
[1641355553662,1.03918,3806.5,3806.1,1.59107963]
[1641355553860,1.03918,3806.5,3806.1,0.00170527]
[1641355554061,1.03918,3806.5,3806.2,0.00113684]
[1641355554761,1.06985823,3806.5,3806.2,0.00113684]
[1641355554961,0.65709,3806.4,3806.2,0.00113684]
[1641355576568,1.65709,3806.4,3806.2,0.00113684]
[1641355576970,3.56624501,3806.4,3806.2,0.00113684]
[1641355577370,1.9766464,3806.3,3806.2,0.00113684]
[1641355577570,2.9766464,3806.3,3806.2,0.00113684]
[1641355578606,1.0,3806.3,3806.2,0.00113684]
[1641355578809,2.91130573,3806.3,3806.2,0.00113684]
[1641355579007,2.03909,3806.4,3806.2,0.00113684]
[1641355579207,1.0,3806.3,3806.2,0.00113684]
[1641355579406,2.03909,3806.4,3806.2,0.00113684]
[1641355579605,3.3534898,3806.4,3806.2,0.00113684]
[1641355580907,0.00354916,3806.3,3806.2,0.00113684]
[1641355581108,0.38554916,3806.3,3806.2,0.00113684]
[1641355584162,0.41622826,3806.3,3806.0,0.46746804]
[1641355584563,1.3143563,3806.2,3806.0,0.46746804]
[1641355584763,1.6963563,3806.2,3806.0,0.46746804]
[1641355584964,2.6963563,3806.2,3806.0,0.46746804]
[1641355586710,2.03918,3806.2,3806.0,0.46746804]
[1641355587604,1.03918,3806.2,3806.0,0.46746804]
[1641355587803,2.03918,3806.2,3806.0,0.46746804]
[1641355588204,1.03918,3806.2,3806.0,0.46746804]
[1641355588404,2.03918,3806.2,3806.0,0.46746804]
[1641355588603,1.03918,3806.2,3806.0,0.46746804]
[1641355588804,2.03918,3806.2,3806.0,0.46746804]
[1641355589263,1.03918,3806.2,3806.0,0.46746804]
[1641355589465,2.03918,3806.2,3806.0,0.46746804]
[1641355589864,1.03918,3806.2,3806.0,0.46746804]
[1641355590063,2.03918,3806.2,3806.0,0.46746804]
[1641355590264,1.03918,3806.2,3806.0,0.46746804]
[1641355590561,2.03918,3806.2,3806.0,0.46746804]
[1641355590762,1.696349,3806.2,3806.0,0.46746804]
[1641355590960,2.696349,3806.2,3806.0,0.46746804]
[1641355593609,2.03918,3806.2,3806.0,0.46746804]
[1641355594011,1.03918,3806.2,3806.0,0.46746804]
[1641355597762,1.03918,3806.2,3806.0,1.12458804]
[1641355598867,1.6963381,3806.2,3806.0,0.46746804]
[1641355599266,2.70903669,3806.2,3806.0,0.46746804]
[1641355604165,12.4500847,3806.1,3806.0,0.46746804]
[1641355604365,4.55,3806.0,3805.3,0.05369144]
[1641355604563,4.771,3805.5,3805.3,0.05369144]
[1641355604768,2.532,3805.4,3805.3,0.05369144]
[1641355604964,3.532,3805.4,3805.3,0.05369144]
[1641355605165,3.532,3805.4,3805.3,0.0599441]
[1641355605569,4.1894,3805.4,3805.3,0.0599441]
[1641355605970,2.0394,3805.4,3805.3,0.0599441]
[1641355606372,3.96268322,3805.4,3805.3,0.0599441]
[1641355608908,3.99336956,3805.4,3805.3,0.0599441]
[1641355611009,3.99336956,3805.4,3805.3,0.0099441]
[1641355620453,4.29336956,3805.4,3805.3,0.0099441]
[1641355620653,3.99336956,3805.4,3805.3,0.0099441]
[1641355625018,4.05346956,3805.4,3805.3,0.0099441]
[1641355627664,2.13018634,3805.4,3805.3,0.0099441]
[1641355628364,1.13018634,3805.4,3805.3,0.0099441]
[1641355630407,2.13018634,3805.4,3805.3,0.0099441]
[1641355632814,1.07008634,3805.4,3805.3,0.0099441]
[1641355633014,0.68808634,3805.4,3805.3,0.0099441]
[1641355634666,0.68808634,3805.4,3805.3,1.18865153]
[1641355634866,0.03068634,3805.4,3805.3,1.18865153]
[1641355635065,0.03068634,3805.4,3805.3,1.18239887]
[1641355642565,0.03068634,3805.4,3805.3,0.00369144]
[1641355647917,1.34528634,3805.4,3805.3,0.00369144]
[1641355648518,1.72728634,3805.4,3805.3,0.00369144]
[1641355649566,2.72728634,3805.4,3805.3,0.00369144]
[1641355657465,3.02728634,3805.4,3805.3,0.00369144]
[1641355658064,2.72728634,3805.4,3805.3,0.00369144]
[1641355658867,3.32728634,3805.4,3805.3,0.00369144]
[1641355659068,2.72728634,3805.4,3805.3,0.00369144]
[1641355668714,0.03068634,3805.4,3805.3,0.00369144]
[1641355674013,0.03068634,3805.4,3805.3,1.83235395]
[1641355680359,0.03068634,3805.4,3805.3,0.00369144]
[1641355690911,0.03068634,3805.4,3805.3,17.62587523]
[1641355708016,0.0062557,3805.5,3805.3,17.62587523]
[1641355708017,0.0062557,3805.5,3805.3,18.42857523]
[1641355708217,0.0062557,3805.5,3805.4,2.02841446]
[1641355708415,0.0062557,3805.5,3805.4,17.74609869]
[1641355708620,0.01421542,3805.8,3805.4,20.05993869]
[1641355708818,0.01421542,3805.8,3805.5,0.65693]
[1641355709019,0.01421542,3805.8,3805.6,15.63]
[1641355709263,3.0184,3806.8,3805.6,16.80385512]
[1641355709464,3.0184,3806.8,3806.2,0.65695]
[1641355709664,0.00170527,3806.7,3806.2,15.33]
[1641355709867,0.00170527,3806.7,3806.5,0.65695]
[1641355710070,0.01421542,3806.8,3806.5,0.65695]
[1641355710071,0.00113685,3806.6,3806.5,0.65695]
[1641355717989,0.00113685,3806.6,3806.5,2.49052851]
[1641355718789,0.00113685,3806.6,3806.5,0.65695]
[1641355719192,0.00113685,3806.6,3806.5,2.47068309]
[1641355720189,0.00113685,3806.6,3806.5,0.65695]
[1641355721216,0.00113685,3806.6,3806.5,2.46715155]
[1641355722018,0.00113685,3806.6,3806.5,16.28695]
[1641355722418,0.00113685,3806.6,3806.5,0.95695]
[1641355722619,0.00113685,3806.6,3806.5,1.25695]
[1641355723619,1.37436,3807.6,3806.5,1.25695]
[1641355723820,1.37436,3807.6,3807.0,0.65694]
[1641355724020,0.00397896,3807.3,3807.0,0.65387]
[1641355724474,0.00341054,3807.2,3807.0,0.65387]